[Event "Titled Tuesday Blitz June 20 Late 2023"]
[White "Haszon, David"]
[Black "Papasimakopoulos, Alexandros"]
[WhiteFideId "733610"]
[BlackFideId "4244125"]
[WhiteElo "2210"]
[BlackElo "2359"]
[Result "1-0"]
[Round "7"]
[TimeControl "180+2"]
[Date "2023.06.20"]
[WhiteClock "0:00:54"]
[BlackClock "0:00:19"]
[Board "60"]

1. d4 {[%clk 0:02:50]}  Nf6 {[%clk 0:02:59]} 2. Bf4 {[%clk 0:02:51]}  c5 {[%clk 0:02:59]} 3. e3 {[%clk 0:02:51]}  Qb6 {[%clk 0:02:59]} 4. Na3 {[%clk 0:02:46]}  cxd4 {[%clk 0:02:50]} 5. Qxd4 {[%clk 0:02:47]}  Qxd4 {[%clk 0:02:47]} 6. exd4 {[%clk 0:02:39]}  Nd5 {[%clk 0:02:44]} 7. Bg3 {[%clk 0:02:38]}  a6 {[%clk 0:02:28]} 8. Nf3 {[%clk 0:02:33]}  b5 {[%clk 0:02:23]} 9. O-O-O {[%clk 0:02:28]}  Nc6 {[%clk 0:02:21]} 10. Ne5 {[%clk 0:02:28]}  Bb7 {[%clk 0:02:19]} 11. Kb1 {[%clk 0:02:21]}  d6 {[%clk 0:02:15]} 12. Nxc6 {[%clk 0:02:18]}  Bxc6 {[%clk 0:02:16]} 13. f3 {[%clk 0:02:14]}  g6 {[%clk 0:02:16]} 14. c3 {[%clk 0:02:13]}  Bg7 {[%clk 0:02:12]} 15. Nc2 {[%clk 0:02:13]}  a5 {[%clk 0:02:05]} 16. Bd3 {[%clk 0:02:12]}  Kd7 {[%clk 0:02:03]} 17. Rhe1 {[%clk 0:02:12]}  Nb6 {[%clk 0:01:58]} 18. a3 {[%clk 0:02:06]}  Nc4 {[%clk 0:01:56]} 19. Bxc4 {[%clk 0:02:02]}  bxc4 {[%clk 0:01:56]} 20. Ne3 {[%clk 0:02:03]}  d5 {[%clk 0:01:55]} 21. Rd2 {[%clk 0:01:56]}  h5 {[%clk 0:01:49]} 22. Rde2 {[%clk 0:01:51]}  e6 {[%clk 0:01:49]} 23. Be5 {[%clk 0:01:48]}  f6 {[%clk 0:01:49]} 24. Bg3 {[%clk 0:01:47]}  h4 {[%clk 0:01:46]} 25. Bf2 {[%clk 0:01:46]}  g5 {[%clk 0:01:42]} 26. Ng4 {[%clk 0:01:45]}  Rae8 {[%clk 0:01:37]} 27. h3 {[%clk 0:01:45]}  Kd6 {[%clk 0:01:36]} 28. Bg1 {[%clk 0:01:45]}  Bd7 {[%clk 0:01:34]} 29. Bh2+ {[%clk 0:01:45]}  Ke7 {[%clk 0:01:34]} 30. Ne3 {[%clk 0:01:45]}  Kf7 {[%clk 0:01:34]} 31. Bc7 {[%clk 0:01:42]}  a4 {[%clk 0:01:32]} 32. Nc2 {[%clk 0:01:40]}  Rc8 {[%clk 0:01:26]} 33. Bd6 {[%clk 0:01:37]}  Bf8 {[%clk 0:01:18]} 34. Bxf8 {[%clk 0:01:36]}  Rcxf8 {[%clk 0:01:19]} 35. Nb4 {[%clk 0:01:37]}  Re8 {[%clk 0:01:19]} 36. Kc1 {[%clk 0:01:36]}  Rhg8 {[%clk 0:01:13]} 37. Na6 {[%clk 0:01:36]}  Bc8 {[%clk 0:01:09]} 38. Nc7 {[%clk 0:01:35]}  Rd8 {[%clk 0:01:03]} 39. Nxe6 {[%clk 0:01:34]}  Bxe6 {[%clk 0:00:52]} 40. Rxe6 {[%clk 0:01:35]}  Rd7 {[%clk 0:00:47]} 41. Ra6 {[%clk 0:01:32]}  Re7 {[%clk 0:00:42]} 42. Rxe7+ {[%clk 0:01:30]}  Kxe7 {[%clk 0:00:43]} 43. Rxa4 {[%clk 0:01:31]}  f5 {[%clk 0:00:43]} 44. Ra7+ {[%clk 0:01:30]}  Ke6 {[%clk 0:00:43]} 45. Ra6+ {[%clk 0:01:31]}  Ke7 {[%clk 0:00:43]} 46. Ra5 {[%clk 0:01:31]}  Ke6 {[%clk 0:00:43]} 47. Ra6+ {[%clk 0:01:32]}  Ke7 {[%clk 0:00:43]} 48. Rh6 {[%clk 0:01:31]}  g4 {[%clk 0:00:36]} 49. fxg4 {[%clk 0:01:32]}  fxg4 {[%clk 0:00:37]} 50. Rxh4 {[%clk 0:01:32]}  gxh3 {[%clk 0:00:37]} 51. Rxh3 {[%clk 0:01:33]}  Rxg2 {[%clk 0:00:37]} 52. Rh6 {[%clk 0:01:30]}  Kd7 {[%clk 0:00:37]} 53. a4 {[%clk 0:01:30]}  Rg1+ {[%clk 0:00:32]} 54. Kc2 {[%clk 0:01:30]}  Ra1 {[%clk 0:00:32]} 55. Ra6 {[%clk 0:01:30]}  Kc7 {[%clk 0:00:33]} 56. Ra5 {[%clk 0:01:28]}  Kd6 {[%clk 0:00:32]} 57. Ra6+ {[%clk 0:01:28]}  Kd7 {[%clk 0:00:32]} 58. a5 {[%clk 0:01:22]}  Kc7 {[%clk 0:00:25]} 59. Kd2 {[%clk 0:01:17]}  Rb1 {[%clk 0:00:24]} 60. Kc2 {[%clk 0:01:17]}  Ra1 {[%clk 0:00:23]} 61. Ra7+ {[%clk 0:01:17]}  Kc6 {[%clk 0:00:23]} 62. a6 {[%clk 0:01:15]}  Ra5 {[%clk 0:00:22]} 63. Ra8 {[%clk 0:01:14]}  Kb6 {[%clk 0:00:23]} 64. Kd2 {[%clk 0:01:04]}  Ra2 {[%clk 0:00:23]} 65. Ke3 {[%clk 0:01:02]}  Kc6 {[%clk 0:00:22]} 66. a7 {[%clk 0:01:00]}  Kb7 {[%clk 0:00:20]} 67. Rd8 {[%clk 0:01:00]}  Kxa7 {[%clk 0:00:20]} 68. Rxd5 {[%clk 0:01:00]}  Rxb2 {[%clk 0:00:20]} 69. Rc5 {[%clk 0:01:01]}  Kb6 {[%clk 0:00:19]} 70. Rxc4 {[%clk 0:01:01]}  Rh2 {[%clk 0:00:20]} 71. Kd3 {[%clk 0:00:59]}  Rh3+ {[%clk 0:00:20]} 72. Kc2 {[%clk 0:01:00]}  Kb5 {[%clk 0:00:20]} 73. Rc5+ {[%clk 0:01:00]}  Kb6 {[%clk 0:00:19]} 74. Kb3 {[%clk 0:01:00]}  Rh1 {[%clk 0:00:20]} 75. Kc4 {[%clk 0:01:00]}  Rb1 {[%clk 0:00:20]} 76. Rh5 {[%clk 0:00:59]}  Rg1 {[%clk 0:00:20]} 77. Rh6+ {[%clk 0:00:59]}  Kc7 {[%clk 0:00:20]} 78. Kc5 {[%clk 0:00:59]}  Ra1 {[%clk 0:00:19]} 79. d5 {[%clk 0:00:58]}  Ra5+ {[%clk 0:00:19]} 80. Kd4 {[%clk 0:00:58]}  Ra1 {[%clk 0:00:20]} 81. c4 {[%clk 0:00:58]}  Kd7 {[%clk 0:00:20]} 82. Rh7+ {[%clk 0:00:58]}  Kd8 {[%clk 0:00:20]} 83. c5 {[%clk 0:00:58]}  Rd1+ {[%clk 0:00:19]} 84. Ke5 {[%clk 0:00:58]}  Rg1 {[%clk 0:00:20]} 85. Rh8+ {[%clk 0:00:57]}  Kd7 {[%clk 0:00:20]} 86. c6+ {[%clk 0:00:56]}  Kc7 {[%clk 0:00:20]} 87. Rh7+ {[%clk 0:00:57]}  Kd8 {[%clk 0:00:18]} 88. Kd6 {[%clk 0:00:57]}  Ke8 {[%clk 0:00:17]} 89. Rh8+ {[%clk 0:00:56]}  Kf7 {[%clk 0:00:16]} 90. c7 {[%clk 0:00:56]}  Rg6+ {[%clk 0:00:15]} 91. Kd7 {[%clk 0:00:56]}  Rg7 {[%clk 0:00:15]} 92. c8=Q {[%clk 0:00:55]}  Kf6+ {[%clk 0:00:16]} 93. Kc6 {[%clk 0:00:54]}  Rg6 {[%clk 0:00:17]} 94. Qe6+ {[%clk 0:00:53]}  Kg7 {[%clk 0:00:17]} 95. Qxg6+ {[%clk 0:00:53]}  Kxh8 {[%clk 0:00:17]} 96. Qg1 {[%clk 0:00:53]}  Kh7 {[%clk 0:00:16]} 97. Kd6 {[%clk 0:00:53]}  Kh6 {[%clk 0:00:17]} 98. Ke6 {[%clk 0:00:54]}  Kh5 {[%clk 0:00:18]} 99. Kf6 {[%clk 0:00:54]}  Kh4 {[%clk 0:00:19]} 100. Kf5 {[%clk 0:00:54]}  Kh5 {[%clk 0:00:19]} 101. Qg5# {[%clk 0:00:54]} 1-0


[Site "https://www.chess.com"]

[Event "Titled Tuesday Blitz June 20 Late 2023"]
[White "julioramirezosio"]
[Black "Garcia Ramos, Daniel"]
[BlackFideId "32010311"]
[WhiteElo "2428"]
[BlackElo "2341"]
[Result "0-1"]
[Round "7"]
[TimeControl "180+2"]
[Date "2023.06.20"]
[WhiteClock "0:00:05"]
[BlackClock "0:00:43"]
[Board "65"]

1. d4 {[%clk 0:02:57]}  d5 {[%clk 0:02:58]} 2. c4 {[%clk 0:02:57]}  e6 {[%clk 0:02:58]} 3. Nf3 {[%clk 0:02:57]}  Nf6 {[%clk 0:02:59]} 4. g3 {[%clk 0:02:58]}  Bb4+ {[%clk 0:02:58]} 5. Nbd2 {[%clk 0:02:57]}  dxc4 {[%clk 0:02:54]} 6. Bg2 {[%clk 0:02:50]}  b5 {[%clk 0:02:52]} 7. Ne5 {[%clk 0:02:20]}  c6 {[%clk 0:02:51]} 8. Nxc6 {[%clk 0:02:13]}  Nxc6 {[%clk 0:02:51]} 9. Bxc6+ {[%clk 0:02:14]}  Bd7 {[%clk 0:02:52]} 10. Bxa8 {[%clk 0:02:13]}  Qxa8 {[%clk 0:02:53]} 11. O-O {[%clk 0:02:13]}  h5 {[%clk 0:02:53]} 12. Nf3 {[%clk 0:02:05]}  Bc6 {[%clk 0:02:49]} 13. a4 {[%clk 0:02:00]}  Bxf3 {[%clk 0:02:37]} 14. exf3 {[%clk 0:01:58]}  h4 {[%clk 0:02:38]} 15. axb5 {[%clk 0:01:51]}  Qd5 {[%clk 0:02:36]} 16. Rxa7 {[%clk 0:01:44]}  Bd6 {[%clk 0:02:20]} 17. b6 {[%clk 0:01:05]}  hxg3 {[%clk 0:02:12]} 18. fxg3 {[%clk 0:00:56]}  Bb8 {[%clk 0:02:00]} 19. Bf4 {[%clk 0:00:34]}  Bxa7 {[%clk 0:01:40]} 20. bxa7 {[%clk 0:00:33]}  O-O {[%clk 0:01:41]} 21. Qd2 {[%clk 0:00:23]}  Ra8 {[%clk 0:01:30]} 22. Ra1 {[%clk 0:00:19]}  Qxf3 {[%clk 0:01:27]} 23. Qg2 {[%clk 0:00:18]}  Qd5 {[%clk 0:01:23]} 24. Be5 {[%clk 0:00:16]}  Ne4 {[%clk 0:01:21]} 25. Bb8 {[%clk 0:00:13]}  Qxd4+ {[%clk 0:01:21]} 26. Kf1 {[%clk 0:00:14]}  Nd2+ {[%clk 0:01:05]} 27. Ke1 {[%clk 0:00:14]}  Qe3+ {[%clk 0:00:48]} 28. Qe2 {[%clk 0:00:11]}  Nf3+ {[%clk 0:00:49]} 29. Kd1 {[%clk 0:00:09]}  Qg1+ {[%clk 0:00:48]} 30. Kc2 {[%clk 0:00:09]}  Nd4+ {[%clk 0:00:48]} 31. Kd2 {[%clk 0:00:05]}  Qxa1 {[%clk 0:00:43]} 0-1


[Site "https://www.chess.com"]

[Event "Titled Tuesday Blitz June 20 Late 2023"]
[White "Xu, Yi"]
[Black "Wang, Isaac"]
[WhiteFideId "8605564"]
[BlackFideId "30977185"]
[WhiteElo "2460"]
[BlackElo "2415"]
[Result "1/2-1/2"]
[Round "7"]
[TimeControl "180+2"]
[Date "2023.06.20"]
[WhiteClock "0:00:04"]
[BlackClock "0:00:35"]
[Board "67"]

1. d4 {[%clk 0:03:00]}  d5 {[%clk 0:02:58]} 2. c4 {[%clk 0:03:01]}  c6 {[%clk 0:02:58]} 3. e3 {[%clk 0:03:00]}  Nf6 {[%clk 0:02:58]} 4. Nc3 {[%clk 0:03:00]}  Bf5 {[%clk 0:02:55]} 5. f3 {[%clk 0:02:47]}  e6 {[%clk 0:02:54]} 6. g4 {[%clk 0:02:46]}  Bg6 {[%clk 0:02:54]} 7. h4 {[%clk 0:02:47]}  h5 {[%clk 0:02:53]} 8. g5 {[%clk 0:02:46]}  Nfd7 {[%clk 0:02:53]} 9. e4 {[%clk 0:02:15]}  dxe4 {[%clk 0:02:50]} 10. fxe4 {[%clk 0:02:16]}  Bb4 {[%clk 0:02:50]} 11. Bd3 {[%clk 0:02:12]}  e5 {[%clk 0:02:50]} 12. d5 {[%clk 0:02:00]}  Nc5 {[%clk 0:02:49]} 13. Qe2 {[%clk 0:01:43]}  Nxd3+ {[%clk 0:02:47]} 14. Qxd3 {[%clk 0:01:43]}  Na6 {[%clk 0:02:47]} 15. Be3 {[%clk 0:01:39]}  cxd5 {[%clk 0:02:44]} 16. cxd5 {[%clk 0:01:33]}  O-O {[%clk 0:02:41]} 17. Nf3 {[%clk 0:01:30]}  f5 {[%clk 0:02:35]} 18. gxf6 {[%clk 0:01:22]}  Qxf6 {[%clk 0:02:33]} 19. O-O {[%clk 0:01:12]}  Nc5 {[%clk 0:02:08]} 20. Qc4 {[%clk 0:01:06]}  Bxc3 {[%clk 0:02:02]} 21. Bxc5 {[%clk 0:01:00]}  Bxb2 {[%clk 0:01:57]} 22. Rab1 {[%clk 0:00:50]}  Bd4+ {[%clk 0:01:52]} 23. Nxd4 {[%clk 0:00:36]}  Qxh4 {[%clk 0:01:50]} 24. Rxf8+ {[%clk 0:00:20]}  Rxf8 {[%clk 0:01:48]} 25. Bxf8 {[%clk 0:00:20]}  Qg3+ {[%clk 0:01:30]} 26. Kf1 {[%clk 0:00:20]}  Bxe4 {[%clk 0:01:27]} 27. Rb3 {[%clk 0:00:18]}  Qg2+ {[%clk 0:01:21]} 28. Ke1 {[%clk 0:00:18]}  Bxd5 {[%clk 0:01:19]} 29. Qe2 {[%clk 0:00:14]}  Qxe2+ {[%clk 0:00:37]} 30. Nxe2 {[%clk 0:00:13]}  Bxb3 {[%clk 0:00:36]} 31. Bd6 {[%clk 0:00:10]}  Bxa2 {[%clk 0:00:36]} 32. Bxe5 {[%clk 0:00:11]}  g5 {[%clk 0:00:36]} 33. Bf6 {[%clk 0:00:10]}  g4 {[%clk 0:00:36]} 34. Ng3 {[%clk 0:00:10]}  Kf7 {[%clk 0:00:34]} 35. Bd8 {[%clk 0:00:05]}  Kg6 {[%clk 0:00:33]} 36. Kd2 {[%clk 0:00:05]}  b5 {[%clk 0:00:34]} 37. Kc3 {[%clk 0:00:05]}  Bd5 {[%clk 0:00:34]} 38. Kb4 {[%clk 0:00:04]}  Bc4 {[%clk 0:00:34]} 39. Ka5 {[%clk 0:00:04]}  Bd3 {[%clk 0:00:34]} 40. Kb4 {[%clk 0:00:04]}  Kh6 {[%clk 0:00:34]} 41. Ka5 {[%clk 0:00:03]}  Kg6 {[%clk 0:00:34]} 42. Kb4 {[%clk 0:00:04]}  Kf7 {[%clk 0:00:33]} 43. Nxh5 {[%clk 0:00:03]}  Ke6 {[%clk 0:00:34]} 44. Nf4+ {[%clk 0:00:03]}  Kf5 {[%clk 0:00:33]} 45. Nxd3 {[%clk 0:00:03]}  Ke4 {[%clk 0:00:33]} 46. Nc5+ {[%clk 0:00:01]}  Kf3 {[%clk 0:00:34]} 47. Ne6 {[%clk 0:00:01]}  g3 {[%clk 0:00:34]} 48. Nd4+ {[%clk 0:00:01]}  Kf2 {[%clk 0:00:33]} 49. Bh4 {[%clk 0:00:02]}  Ke3 {[%clk 0:00:32]} 50. Nf5+ {[%clk 0:00:02]}  Kf4 {[%clk 0:00:33]} 51. Nxg3 {[%clk 0:00:03]}  Kg4 {[%clk 0:00:34]} 52. Nf5 {[%clk 0:00:03]}  Kxf5 {[%clk 0:00:34]} 53. Bf2 {[%clk 0:00:03]}  Ke4 {[%clk 0:00:34]} 54. Bxa7 {[%clk 0:00:03]}  Kd5 {[%clk 0:00:35]} 55. Kxb5 {[%clk 0:00:04]} 1/2-1/2


[Site "https://www.chess.com"]

[Event "Titled Tuesday Blitz June 20 Late 2023"]
[White "Turner, Max N"]
[Black "Goltsev, Dmitry"]
[WhiteFideId "447722"]
[BlackFideId "24176710"]
[WhiteElo "2157"]
[BlackElo "2356"]
[Result "0-1"]
[Round "7"]
[TimeControl "180+2"]
[Date "2023.06.20"]
[WhiteClock "0:02:26"]
[BlackClock "0:02:13"]
[Board "68"]

1. d4 {[%clk 0:02:57]}  Nf6 {[%clk 0:02:58]} 2. c4 {[%clk 0:02:54]}  e6 {[%clk 0:02:58]} 3. Nc3 {[%clk 0:02:54]}  Bb4 {[%clk 0:02:57]} 4. e3 {[%clk 0:02:54]}  b6 {[%clk 0:02:55]} 5. Ne2 {[%clk 0:02:54]}  Bb7 {[%clk 0:02:55]} 6. a3 {[%clk 0:02:54]}  Be7 {[%clk 0:02:54]} 7. d5 {[%clk 0:02:52]}  exd5 {[%clk 0:02:54]} 8. cxd5 {[%clk 0:02:52]}  O-O {[%clk 0:02:54]} 9. Nf4 {[%clk 0:02:51]}  Bd6 {[%clk 0:02:49]} 10. Be2 {[%clk 0:02:45]}  a5 {[%clk 0:02:43]} 11. O-O {[%clk 0:02:43]}  Na6 {[%clk 0:02:41]} 12. Bf3 {[%clk 0:02:43]}  Nc5 {[%clk 0:02:39]} 13. Re1 {[%clk 0:02:40]}  Bxf4 {[%clk 0:02:37]} 14. exf4 {[%clk 0:02:39]}  d6 {[%clk 0:02:37]} 15. Be3 {[%clk 0:02:38]}  Qd7 {[%clk 0:02:31]} 16. g3 {[%clk 0:02:38]}  Qf5 {[%clk 0:02:28]} 17. Bd4 {[%clk 0:02:36]}  Rfe8 {[%clk 0:02:17]} 18. Qd2 {[%clk 0:02:30]}  Nb3 {[%clk 0:02:14]} 19. Qd1 {[%clk 0:02:26]}  Rxe1+ {[%clk 0:02:13]} 0-1


[Site "https://www.chess.com"]

[Event "Titled Tuesday Blitz June 20 Late 2023"]
[White "Rios Escobar, Adan"]
[Black "Principe, Gerson"]
[WhiteFideId "3403645"]
[BlackFideId "3804550"]
[WhiteElo "2474"]
[BlackElo "2229"]
[Result "0-1"]
[Round "7"]
[TimeControl "180+2"]
[Date "2023.06.20"]
[WhiteClock "0:00:00"]
[BlackClock "0:00:05"]
[Board "73"]

1. d4 {[%clk 0:02:54]}  Nf6 {[%clk 0:02:59]} 2. g3 {[%clk 0:02:55]}  e6 {[%clk 0:02:56]} 3. c4 {[%clk 0:02:54]}  d5 {[%clk 0:02:52]} 4. Bg2 {[%clk 0:02:54]}  Bb4+ {[%clk 0:02:53]} 5. Nd2 {[%clk 0:02:54]}  Nc6 {[%clk 0:02:50]} 6. Nf3 {[%clk 0:02:48]}  dxc4 {[%clk 0:02:46]} 7. O-O {[%clk 0:02:30]}  c3 {[%clk 0:02:38]} 8. Nc4 {[%clk 0:02:22]}  cxb2 {[%clk 0:02:36]} 9. Bxb2 {[%clk 0:02:22]}  O-O {[%clk 0:02:37]} 10. Qb3 {[%clk 0:02:14]}  a5 {[%clk 0:02:30]} 11. Rfd1 {[%clk 0:02:10]}  a4 {[%clk 0:02:28]} 12. Qc2 {[%clk 0:02:10]}  Be7 {[%clk 0:02:22]} 13. Ba3 {[%clk 0:02:05]}  Bd7 {[%clk 0:02:07]} 14. Rab1 {[%clk 0:02:04]}  Ra7 {[%clk 0:01:46]} 15. e4 {[%clk 0:01:45]}  Bxa3 {[%clk 0:01:27]} 16. Nxa3 {[%clk 0:01:43]}  Ne7 {[%clk 0:01:04]} 17. Ne5 {[%clk 0:01:37]}  b6 {[%clk 0:00:42]} 18. h4 {[%clk 0:01:14]}  Ne8 {[%clk 0:00:40]} 19. d5 {[%clk 0:01:08]}  exd5 {[%clk 0:00:39]} 20. exd5 {[%clk 0:01:09]}  Nd6 {[%clk 0:00:39]} 21. Nc6 {[%clk 0:01:00]}  Bxc6 {[%clk 0:00:21]} 22. dxc6 {[%clk 0:01:01]}  Qc8 {[%clk 0:00:20]} 23. Kh2 {[%clk 0:00:44]}  Qf5 {[%clk 0:00:20]} 24. Qd2 {[%clk 0:00:28]}  Ng6 {[%clk 0:00:14]} 25. Bh3 {[%clk 0:00:21]}  Qc5 {[%clk 0:00:13]} 26. Qe3 {[%clk 0:00:02]}  Qxe3 {[%clk 0:00:12]} 27. fxe3 {[%clk 0:00:01]}  Rd8 {[%clk 0:00:12]} 28. Rdc1 {[%clk 0:00:01]}  Ne5 {[%clk 0:00:08]} 29. Bd7 {[%clk 0:00:01]}  Nxd7 {[%clk 0:00:07]} 30. cxd7 {[%clk 0:00:02]}  Rxd7 {[%clk 0:00:08]} 31. Rd1 {[%clk 0:00:01]}  g6 {[%clk 0:00:08]} 32. e4 {[%clk 0:00:02]}  Ra5 {[%clk 0:00:09]} 33. Nc4 {[%clk 0:00:01]}  Rc5 {[%clk 0:00:09]} 34. e5 {[%clk 0:00:01]}  Rxc4 {[%clk 0:00:09]} 35. exd6 {[%clk 0:00:01]}  Rxd6 {[%clk 0:00:08]} 36. Rxd6 {[%clk 0:00:02]}  cxd6 {[%clk 0:00:09]} 37. Rxb6 {[%clk 0:00:02]}  Rc2+ {[%clk 0:00:10]} 38. Kh3 {[%clk 0:00:01]}  d5 {[%clk 0:00:09]} 39. Rd6 {[%clk 0:00:01]}  Rd2 {[%clk 0:00:08]} 40. Ra6 {[%clk 0:00:01]}  Rxa2 {[%clk 0:00:08]} 41. Ra5 {[%clk 0:00:02]}  d4 {[%clk 0:00:08]} 42. Rd5 {[%clk 0:00:03]}  Rd2 {[%clk 0:00:07]} 43. Ra5 {[%clk 0:00:03]}  Kg7 {[%clk 0:00:06]} 44. Rxa4 {[%clk 0:00:04]}  h5 {[%clk 0:00:06]} 45. Ra6 {[%clk 0:00:03]}  Kf8 {[%clk 0:00:06]} 46. Ra7 {[%clk 0:00:03]}  Kg7 {[%clk 0:00:06]} 47. Rd7 {[%clk 0:00:03]}  Kf6 {[%clk 0:00:05]} 48. Rd5 {[%clk 0:00:03]}  Ke6 {[%clk 0:00:06]} 49. Rd8 {[%clk 0:00:04]}  Ke5 {[%clk 0:00:06]} 50. Rd7 {[%clk 0:00:03]}  f6 {[%clk 0:00:06]} 51. g4 {[%clk 0:00:03]}  Rd3+ {[%clk 0:00:06]} 52. Kg2 {[%clk 0:00:03]}  hxg4 {[%clk 0:00:07]} 53. Rg7 {[%clk 0:00:03]}  Kf5 {[%clk 0:00:07]} 54. Rd7 {[%clk 0:00:03]}  Kf4 {[%clk 0:00:07]} 55. Rg7 {[%clk 0:00:02]}  Rd2+ {[%clk 0:00:07]} 56. Kf1 {[%clk 0:00:03]}  Kf5 {[%clk 0:00:07]} 57. Rd7 {[%clk 0:00:02]}  Rh2 {[%clk 0:00:07]} 58. Rd5+ {[%clk 0:00:01]}  Ke4 {[%clk 0:00:05]} 59. Rd6 {[%clk 0:00:01]}  f5 {[%clk 0:00:06]} 60. Rxg6 {[%clk 0:00:01]}  Rxh4 {[%clk 0:00:06]} 61. Rd6 {[%clk 0:00:01]}  Rh2 {[%clk 0:00:06]} 62. Kg1 {[%clk 0:00:01]}  Ra2 {[%clk 0:00:06]} 63. Rd8 {[%clk 0:00:02]}  d3 {[%clk 0:00:05]} 64. Re8+ {[%clk 0:00:03]}  Kf3 {[%clk 0:00:06]} 65. Rd8 {[%clk 0:00:00]}  d2 {[%clk 0:00:05]} 0-1


[Site "https://www.chess.com"]

[Event "Titled Tuesday Blitz June 20 Late 2023"]
[White "brm72"]
[Black "Jonkman, Harmen"]
[BlackFideId "1002708"]
[WhiteElo "2570"]
[BlackElo "2368"]
[Result "0-1"]
[Round "7"]
[TimeControl "180+2"]
[Date "2023.06.20"]
[WhiteClock "0:00:04"]
[BlackClock "0:00:09"]
[Board "78"]

1. e4 {[%clk 0:03:00]}  e5 {[%clk 0:02:56]} 2. Nf3 {[%clk 0:03:00]}  Nc6 {[%clk 0:02:56]} 3. d4 {[%clk 0:03:00]}  exd4 {[%clk 0:02:56]} 4. Nxd4 {[%clk 0:03:01]}  Nf6 {[%clk 0:02:55]} 5. Nxc6 {[%clk 0:03:01]}  bxc6 {[%clk 0:02:55]} 6. e5 {[%clk 0:03:02]}  Qe7 {[%clk 0:02:54]} 7. Qe2 {[%clk 0:03:02]}  Nd5 {[%clk 0:02:54]} 8. h4 {[%clk 0:03:02]}  a5 {[%clk 0:02:51]} 9. c4 {[%clk 0:03:02]}  Nb4 {[%clk 0:02:46]} 10. a3 {[%clk 0:02:58]}  Na6 {[%clk 0:02:43]} 11. Bg5 {[%clk 0:02:53]}  Qe6 {[%clk 0:02:42]} 12. Nd2 {[%clk 0:02:19]}  Nc5 {[%clk 0:02:41]} 13. g3 {[%clk 0:02:15]}  h6 {[%clk 0:02:31]} 14. Bf4 {[%clk 0:02:08]}  Be7 {[%clk 0:02:24]} 15. O-O-O {[%clk 0:02:04]}  Rb8 {[%clk 0:02:13]} 16. Ne4 {[%clk 0:01:36]}  Na4 {[%clk 0:02:01]} 17. Rd2 {[%clk 0:01:33]}  Nxb2 {[%clk 0:01:56]} 18. Bh3 {[%clk 0:01:04]}  Qxc4+ {[%clk 0:01:44]} 19. Qxc4 {[%clk 0:00:59]}  Nxc4 {[%clk 0:01:44]} 20. Rd4 {[%clk 0:00:56]}  Nxa3 {[%clk 0:01:33]} 21. Rhd1 {[%clk 0:00:52]}  Rb1+ {[%clk 0:01:20]} 22. Kd2 {[%clk 0:00:52]}  Bb4+ {[%clk 0:01:18]} 23. Ke2 {[%clk 0:00:51]}  Rxd1 {[%clk 0:01:11]} 24. Rxd1 {[%clk 0:00:52]}  Ke7 {[%clk 0:00:59]} 25. Be3 {[%clk 0:00:24]}  d6 {[%clk 0:00:53]} 26. Bxc8 {[%clk 0:00:23]}  Rxc8 {[%clk 0:00:52]} 27. Rc1 {[%clk 0:00:23]}  c5 {[%clk 0:00:47]} 28. Bf4 {[%clk 0:00:21]}  Nb5 {[%clk 0:00:46]} 29. Rd1 {[%clk 0:00:20]}  Rd8 {[%clk 0:00:42]} 30. Rc1 {[%clk 0:00:19]}  a4 {[%clk 0:00:40]} 31. g4 {[%clk 0:00:16]}  a3 {[%clk 0:00:40]} 32. g5 {[%clk 0:00:17]}  h5 {[%clk 0:00:39]} 33. g6 {[%clk 0:00:16]}  f6 {[%clk 0:00:30]} 34. exf6+ {[%clk 0:00:13]}  gxf6 {[%clk 0:00:30]} 35. Bh6 {[%clk 0:00:12]}  Nd4+ {[%clk 0:00:28]} 36. Kd3 {[%clk 0:00:11]}  Nb3 {[%clk 0:00:24]} 37. Rg1 {[%clk 0:00:08]}  a2 {[%clk 0:00:22]} 38. Ng3 {[%clk 0:00:06]}  a1=Q {[%clk 0:00:19]} 39. Nf5+ {[%clk 0:00:07]}  Ke6 {[%clk 0:00:18]} 40. Rxa1 {[%clk 0:00:08]}  Nxa1 {[%clk 0:00:17]} 41. Ng7+ {[%clk 0:00:08]}  Ke5 {[%clk 0:00:16]} 42. f4+ {[%clk 0:00:07]}  Kd5 {[%clk 0:00:16]} 43. Nxh5 {[%clk 0:00:07]}  Ke6 {[%clk 0:00:14]} 44. Ng7+ {[%clk 0:00:06]}  Ke7 {[%clk 0:00:13]} 45. f5 {[%clk 0:00:05]}  Nb3 {[%clk 0:00:11]} 46. Ne6 {[%clk 0:00:05]}  Rg8 {[%clk 0:00:10]} 47. h5 {[%clk 0:00:05]}  d5 {[%clk 0:00:11]} 48. Bf4 {[%clk 0:00:05]}  c4+ {[%clk 0:00:11]} 49. Ke2 {[%clk 0:00:04]}  c5 {[%clk 0:00:11]} 50. h6 {[%clk 0:00:03]}  Nd4+ {[%clk 0:00:12]} 51. Nxd4 {[%clk 0:00:03]}  cxd4 {[%clk 0:00:12]} 52. h7 {[%clk 0:00:04]}  Kf8 {[%clk 0:00:11]} 53. hxg8=Q+ {[%clk 0:00:04]}  Kxg8 {[%clk 0:00:12]} 54. Bh6 {[%clk 0:00:04]}  d3+ {[%clk 0:00:12]} 55. Kd1 {[%clk 0:00:04]}  c3 {[%clk 0:00:11]} 56. Be3 {[%clk 0:00:03]}  c2+ {[%clk 0:00:12]} 57. Kc1 {[%clk 0:00:01]}  Bc3 {[%clk 0:00:12]} 58. Bd2 {[%clk 0:00:01]}  Bd4 {[%clk 0:00:10]} 59. Bb4 {[%clk 0:00:01]}  Be5 {[%clk 0:00:09]} 60. Bd2 {[%clk 0:00:02]}  Kf8 {[%clk 0:00:09]} 61. Bb4+ {[%clk 0:00:03]}  Kg8 {[%clk 0:00:09]} 62. Bd2 {[%clk 0:00:04]}  Bd6 {[%clk 0:00:09]} 63. Bb4 {[%clk 0:00:05]}  Bxb4 {[%clk 0:00:09]} 64. Kb2 {[%clk 0:00:05]}  Bd2 {[%clk 0:00:09]} 65. Kb3 {[%clk 0:00:04]}  c1=Q {[%clk 0:00:09]} 0-1


[Site "https://www.chess.com"]